[Event "European Women-ch 2023"]
[Site "Petrovac"]
[Date "2023.03.19"]
[Round "2.1"]
[White "Zawadzka, Jolanta"]
[Black "Tsotsonava, Elene"]
[Result "1-0"]
[ECO "B47"]
[WhiteElo "2391"]
[BlackElo "2030"]
[Annotator "TA"]
[PlyCount "91"]
[EventDate "2023.03.15"]
[EventType "swiss"]
[EventCountry "MNE"]
[SourceTitle "playchess.com"]
[Source "ChessBase"]
[SourceQuality "1"]
[TimeControl "40/5400+30:1800+30"]

{[%evp 11,91,35,24,25,27,27,27,27,27,23,31,29,27,34,23,18,33,14,40,36,82,70,85,68,101,101,106,95,113,104,127,133,131,111,118,70,71,84,80,92,81,82,129,86,145,158,220,220,220,220,220,220,220,220,215,195,365,364,395,365,523,503,737,645,648,635,622,602,564,498,630,568,1002,987,964,931,1390,1333,2090,1987,1456,1452]} 1. e4 {[%emt 0:00:02]} c5 {[%emt 0:00:06]} 2. Nf3 {[%emt 0:00:05]} e6 {[%emt 0:00:05]} 3. d4 {[%emt 0:00:04]} cxd4 {[%emt 0:00:04]} 4. Nxd4 {[%emt 0:00:05]} Nc6 {[%emt 0:00:04]} 5. Nc3 {[%emt 0:00:07]} Qc7 {[%emt 0:00:05]} 6. Be2 {[%emt 0:00:05]} a6 {[%emt 0:00:12] Black is weak on the light squares} 7. Nxc6 {[%emt 0:00:24] B47: Sicilian: Taimanov: 5 Nc3 Qc7 6 f4, 6 g3 and 6 Be2.} bxc6 {[%emt 0:07:08]} 8. Qd3 {[%emt 0:00:26]} Nf6 {[%emt 0:03:43]} 9. Qg3 {[%emt 0:01:15] White has an edge.} Qxg3 {[%emt 0:00:26]} 10. hxg3 {[%emt 0:00:07]} d5 {[%emt 0:00:29]} 11. g4 {[%emt 0:00:29]} Nxe4 {[%emt 0:06:32]} 12. Nxe4 {[%emt 0:00:15]} dxe4 {[%emt 0:00:02] [#]} 13. g5 $146 {[%emt 0:00:47]} ({Predecessor:} 13. Be3 Bb7 14. O-O-O c5 15. g5 h6 16. gxh6 gxh6 17. Rh5 Rc8 18. g4 Rg8 19. b3 {1-0 Mastrovasilis,D (2603)-Mastrovasilis,A (2520) Braila GP RO Stage 5 rapid 2022 (10)}) 13... Rb8 {[%emt 0:00:19]} 14. b3 {[%emt 0:18:29]} Bb4+ {[%emt 0:14:08]} 15. Bd2 {[%emt 0:00:11]} e3 {[%emt 0:03:12]} 16. fxe3 $16 {[%emt 0:00:09]} Be7 {[%emt 0:06:59]} 17. e4 {[%emt 0:05:19]} O-O {[%emt 0:02:34]} 18. O-O-O {[%emt 0:05:07]} Rd8 {[%emt 0:06:15]} 19. Bd3 {[%emt 0:01:41]} Bb7 {[%emt 0:09:08]} 20. Rh3 {[%emt 0:02:41] aiming for Rdh1.} Ba3+ {[%emt 0:03:23]} 21. Kb1 {[%emt 0:00:10] Threatens to win with Rdh1.} c5 {[%emt 0:00:31][%cal Oc5c4]} 22. Ba5 {[%emt 0:08:20] Black must now prevent Rdh1.} Rdc8 {[%emt 0:15:28][%cal Oc5c4]} 23. c4 {[%emt 0:06:49] White is more active.} (23. Re1 $16) 23... Bb4 $14 {[%emt 0:04:10]} 24. Bxb4 {[%emt 0:00:07]} cxb4 {[%emt 0:00:02]} 25. Rdh1 {[%emt 0:00:14]} h6 {[%emt 0:02:33]} 26. gxh6 {[%emt 0:00:28]} g6 {[%emt 0:00:01]} (26... Rc7 $142) 27. Bc2 {[%emt 0:12:33]} a5 {[%emt 0:04:57]} (27... Kh7 $142) 28. Rd1 $16 {[%emt 0:01:30]} Bc6 {[%emt 0:04:37] [#]} (28... Ba8 $16 {was called for.} 29. h7+ Kh8) 29. g4 $1 $18 {[%emt 0:02:06]} a4 {[%emt 0:01:56]} 30. e5 {[%emt 0:04:04]} ({Don't do} 30. bxa4 $6 Kh7 $16) 30... Ra8 {[%emt 0:00:43]} 31. Rd6 {[%emt 0:03:32][%cal Od6c6] Strongly threatening Rxc6!} Ra5 {[%emt 0:00:43] [#]} 32. Re3 {[%emt 0:00:26]} Rc5 {[%emt 0:04:21]} 33. Kc1 {[%emt 0:02:00]} ({Weaker is} 33. bxa4 Rxc4 34. a5 Rxg4 $11) 33... a3 $2 {[%emt 0:01:19]} ({Not} 33... Kh7 34. g5 $16) (33... Ra5 {was worth a try.} 34. a3 bxa3) 34. Kd2 {[%emt 0:00:51]} Kf8 {[%emt 0:00:36]} 35. Be4 {[%emt 0:04:41]} Be8 {[%emt 0:00:20]} (35... Bxe4 $142 36. Rxe4 g5) 36. Bg2 {[%emt 0:01:22] White is clearly winning.} Bb5 {[%emt 0:00:40]} 37. Rb6 {[%emt 0:01:03]} Bxc4 {[%emt 0:00:32]} 38. bxc4 {[%emt 0:00:11]} Rxc4 {[%emt 0:00:10]} 39. Be4 {[%emt 0:00:41] Repels Rc2+} Kg8 {[%emt 0:00:36]} 40. Ke2 {[%emt 0:00:00]} R8c5 {[%emt 0:00:00]} 41. Kf3 {[%emt 0:02:38]} Rc1 {[%emt 0:03:30]} 42. Rxb4 {[%emt 0:01:00]} Rf1+ {[%emt 0:00:22]} 43. Kg3 {[%emt 0:00:48] g5 is the strong threat.} Rg1+ {[%emt 0:01:52]} 44. Kf4 {[%emt 0:00:25]} Rf1+ {[%emt 0:01:03]} 45. Bf3 {[%emt 0:00:42]} Kh7 {[%emt 0:00:56]} 46. g5 {[%emt 0:01:55] Weighted Error Value: White=0.13 (very precise) /Black=0.31} 1-0

[Event "European Women-ch 2023"]
[Site "Petrovac"]
[Date "2023.03.19"]
[Round "2.1"]
[White "Bivol, Alina"]
[Black "Sieber, Fiona"]
[Result "1-0"]
[ECO "B40"]
[WhiteElo "2365"]
[BlackElo "2217"]
[Annotator "TA"]
[PlyCount "67"]
[EventDate "2023.03.15"]
[EventType "swiss"]
[EventCountry "MNE"]
[SourceTitle "playchess.com"]
[Source "ChessBase"]
[SourceQuality "1"]
[TimeControl "40/5400+30:1800+30"]

{[%evp 13,67,0,0,7,18,5,16,14,7,9,9,14,41,26,26,26,87,103,87,91,153,106,181,112,115,118,278,83,91,34,48,17,165,180,535,283,272,278,247,120,1031,845,1042,1042,980,782,1678,912,1606,1538,2180,1856,29991,29992,29992,29993]} 1. e4 {[%emt 0:00:08]} c5 {[%emt 0:00:03]} 2. Nf3 {[%emt 0:00:27]} e6 {[%emt 0:00:03]} 3. g3 {[%emt 0:00:10]} Nc6 {[%emt 0:00:15]} 4. Bg2 {[%emt 0:00:09]} Nf6 {[%emt 0:00:10]} 5. d3 {[%emt 0:00:06]} Be7 {[%emt 0:00:39]} 6. O-O {[%emt 0:00:47]} O-O {[%emt 0:00:07]} 7. Qe2 {[%emt 0:02:37]} d6 {[%emt 0:00:33]} 8. c3 {[%emt 0:03:29] B40: Sicilian: 2...e6, Unusual lines.} Bd7 {[%emt 0:04:14]} 9. Rd1 {[%emt 0:03:10] [#]} b5 $146 {[%emt 0:07:42]} ({Predecessor:} 9... Qc7 10. Na3 Rac8 11. Bf4 Ne5 12. d4 Ng6 13. Bd2 cxd4 14. cxd4 Qb6 15. Be1 Bc6 {1-0 Zhu,J (2455)-Abdusattorov,N (2634) Kramnik Challenge rapid 2021 (9)}) 10. Nbd2 {[%emt 0:01:24] The position is equal.} Qc7 {[%emt 0:09:38]} 11. d4 {[%emt 0:02:25]} cxd4 {[%emt 0:06:32]} 12. cxd4 {[%emt 0:00:10]} Nb4 {[%emt 0:00:24]} 13. e5 {[%emt 0:03:16]} Nfd5 {[%emt 0:02:25]} 14. Ne4 {[%emt 0:03:32]} Rfc8 {[%emt 0:05:40] [#]} (14... dxe5 $11 15. Nxe5 Be8) 15. Bg5 $1 $16 {[%emt 0:09:09] Bxe7 is the strong threat.} Bf8 {[%emt 0:04:54]} 16. Rac1 {[%emt 0:02:37]} Qb6 {[%emt 0:00:33]} (16... Nc6 $142) 17. a3 {[%emt 0:02:36]} (17. exd6 $142 f6 18. a3) 17... Rxc1 {[%emt 0:01:03]} (17... Na6 $16) 18. Rxc1 {[%emt 0:01:34]} ({White should play} 18. Bxc1 $18 Na6 19. exd6) 18... Na6 {[%emt 0:05:06]} 19. exd6 {[%emt 0:02:57] Threatens to win with Ne5. White is more active.} Bxd6 {[%emt 0:02:22]} (19... f6 $16) 20. b4 $2 {[%emt 0:00:16]} (20. Ne5 $18 Bxe5 21. dxe5) 20... Nac7 {[%emt 0:01:26]} 21. Bd2 {[%emt 0:06:27]} (21. Ne5 $16 Be8 22. Ng4 (22. Nxd6 Qxd6 23. Qc2 f6 $16)) 21... Rd8 {[%emt 0:14:11]} 22. Qd3 {[%emt 0:04:10]} Bc8 {[%emt 0:03:45] [#]} (22... h6 $11 {and Black is okay.}) 23. Ne5 $1 $18 {[%emt 0:11:04] Strongly threatening Rc6.} (23. Nxd6 Qxd6 24. Ng5 f5 $16) 23... Ne7 {[%emt 0:10:15] [#] Repels Rc6} (23... Be7 {is a better chance.} 24. Ng5 Bxg5 25. Bxg5 f6) 24. Nxf7 $1 {[%emt 0:11:34][%mdl 576] Decoy} Kxf7 {[%emt 0:00:05]} 25. Ng5+ {[%emt 0:00:13][%mdl 64] Discovered Attack, Double Attack} Ke8 {[%emt 0:02:14]} (25... Kf8 $2 26. Qf3+ (26. Nxh7+ Kg8 $16) 26... Kg8 27. Qf7+ (27. Qh5 h6 $17) 27... Kh8 28. Qh5 $18) 26. Qf3 {[%emt 0:04:25]} (26. Qxh7 $18 {is the precise move to win. Hoping for Be3.} Bb7 27. Bxb7 (27. Qxg7 Bxg2 28. Kxg2 Kd7 $16) 27... Qxb7 28. Ne4 (28. Qxg7 Kd7 $16)) 26... h6 $2 {[%emt 0:07:33][%mdl 8192]} (26... Qxd4 $2 {gets mated.} 27. Qf7+ Kd7 28. Bc6#) (26... Nf5 $2 27. Qh5+ (27. Nxh7 Bb7 $16) 27... Kd7 28. Qf7+ (28. Nxh7 Ne7 $16) 28... Be7 29. Bf4 $18 (29. Nxh7 Rh8 $18)) (26... Kd7 $16) 27. Qf7+ {[%emt 0:08:14]} Kd7 {[%emt 0:00:01] [#]} 28. Nxe6 $1 {[%emt 0:01:07][%mdl 576] Deflection} Nxe6 {[%emt 0:01:13]} 29. d5 {[%emt 0:04:19][%csl Gf7][%cal Bd4d5,Bd5e6][%mdl 32]} Rh8 {[%emt 0:06:55]} 30. dxe6+ {[%emt 0:00:18]} Kd8 {[%emt 0:00:02]} 31. Be3 {[%emt 0:00:32]} Qa6 {[%emt 0:01:40]} 32. Rd1 {[%emt 0:01:03] Bf4 would kill now.} Kc7 {[%emt 0:02:28] [#]} 33. Rxd6 $1 {[%emt 0:00:47][%mdl 512]} Qxd6 {[%emt 0:01:13]} 34. Bf4 {[%emt 0:00:15] A superb game by Bivol.   Weighted Error Value: White=0.47/Black=0.75} ({Weaker is} 34. Qxg7 Rg8 35. Qxh6 Qxe6 36. Qf4+ Kd8 $17) 1-0

[Event "European Women-ch 2023"]
[Site "Petrovac"]
[Date "2023.03.19"]
[Round "2.1"]
[White "Ovod, Evgenija"]
[Black "Mammadzada, Gunay"]
[Result "1/2-1/2"]
[ECO "B52"]
[WhiteElo "2305"]
[BlackElo "2472"]
[Annotator "TA"]
[PlyCount "73"]
[EventDate "2023.03.15"]
[EventType "swiss"]
[EventCountry "MNE"]
[SourceTitle "playchess.com"]
[Source "ChessBase"]
[SourceQuality "1"]
[TimeControl "40/5400+30:1800+30"]

{[%evp 12,73,23,27,30,16,14,-7,-19,-14,0,0,0,0,0,-5,0,-13,1,0,6,0,23,16,21,0,0,0,6,0,41,41,111,96,102,91,76,68,61,55,89,79,68,44,52,42,78,18,18,29,86,54,54,54,54,54,54,0,139,0,54,0,123,0]} 1. e4 {[%emt 0:00:30]} c5 {[%emt 0:00:12]} 2. Nf3 {[%emt 0:00:00]} d6 {[%emt 0:00:06]} 3. Bb5+ {[%emt 0:00:00]} Bd7 {[%emt 0:00:33]} 4. Bxd7+ {[%emt 0:00:00]} Nxd7 {[%emt 0:00:37]} 5. O-O {[%emt 0:00:12]} Ngf6 {[%emt 0:00:10]} 6. Qe2 {[%emt 0:00:15]} e6 {[%emt 0:01:08]} 7. c4 {[%emt 0:00:20]} Ne5 $1 {[%emt 0:07:04][%mdl 4] outshines the older 7...Be7. B52: Sicilian: Moscow Variation with 3...Bd7.} 8. b3 {[%emt 0:18:40]} Be7 {[%emt 0:12:52]} 9. Nxe5 {[%emt 0:12:53]} dxe5 {[%emt 0:00:05] The position is equal.} 10. Bb2 {[%emt 0:00:03]} Nd7 {[%emt 0:05:09]} 11. f4 {[%emt 0:00:47]} exf4 {[%emt 0:07:36]} 12. Bxg7 {[%emt 0:09:35]} Rg8 {[%emt 0:00:30]} 13. Bb2 {[%emt 0:00:32][%cal Oe4e5] [#]} e5 $146 {[%emt 0:13:50]} ({Predecessor:} 13... Bf6 14. e5 Bh8 15. Rxf4 Qg5 16. Re4 O-O-O 17. d3 Nxe5 18. h4 Qh6 19. Bxe5 Bxe5 20. Rxe5 {0-1 Grischuk,A (2771)-Van Foreest,J (2598) Titled Tuesday intern op 2nd April blitz 2019 (7)}) 14. Nc3 {[%emt 0:00:27]} Bd6 {[%emt 0:08:58]} 15. Rf3 {[%emt 0:01:39][%cal Bf1f3,Bf3h3,Bh3h5,Bh5f5][%mdl 32]} Qg5 {[%emt 0:08:00]} 16. Rh3 {[%emt 0:06:37]} Rg7 {[%emt 0:06:14]} 17. Rh5 {[%emt 0:08:21]} (17. Nb5 {seems wilder.} Ke7 18. Rf1 Rag8 19. Rf2) 17... Qg6 {[%emt 0:00:11]} 18. Nd5 {[%emt 0:00:13]} O-O-O {[%emt 0:01:14]} 19. Rf1 {[%emt 0:07:36][%cal Ob2e5]} f6 {[%emt 0:02:36]} 20. Rf2 {[%emt 0:03:45]} Nf8 {[%emt 0:01:16]} 21. Rf5 {[%emt 0:03:17]} Rf7 {[%emt 0:01:14]} (21... Nd7 $14) 22. Qh5 {[%emt 0:01:59]} Qg7 {[%emt 0:01:51]} 23. Qh4 {[%emt 0:05:23][%cal Rf5f6]} Ng6 {[%emt 0:00:16]} 24. Qg4 {[%emt 0:00:08][%cal Rf5f4]} (24. Qh3 $5 {[%cal Rf5f4]} Rdd7 25. Kh1 $14) 24... Kb8 {[%emt 0:00:22]} 25. Kf1 {[%emt 0:10:10]} Qf8 {[%emt 0:02:57]} 26. g3 {[%emt 0:00:30] White has more active pieces.} Ne7 {[%emt 0:04:03]} 27. Nxe7 {[%emt 0:00:36]} (27. Rh5 {is more complex.} Re8 28. gxf4 exf4 29. Nxf4 f5 30. exf5 Nxf5 31. Nd3) 27... Qxe7 {[%emt 0:01:50]} 28. Qf3 {[%emt 0:05:56]} Qe6 {[%emt 0:03:02]} 29. gxf4 {[%emt 0:01:09]} (29. d3 $16) 29... exf4 $11 {[%emt 0:00:01]} 30. Rd5 {[%emt 0:00:08] Prevents Be5} Rfd7 {[%emt 0:02:59]} (30... Rg8 $11 {remains equal.}) 31. d3 {[%emt 0:00:19]} Rg8 {[%emt 0:02:28]} 32. Bc1 {[%emt 0:00:27]} Rg4 {[%emt 0:00:43]} 33. Rg2 {[%emt 0:01:15]} Rh4 {[%emt 0:01:48]} 34. Qf2 {[%emt 0:01:31] Dodges b6} (34. Ke2 $14) 34... Rg4 {[%emt 0:02:45]} (34... Qh3 $11 35. Ke1 b6) 35. Qf3 {[%emt 0:01:05]} ({White should try} 35. Rxd6 $16 Rxd6 36. Bxf4 Rxg2 37. Qxg2) 35... Rh4 $1 $14 {[%emt 0:01:03]} 36. Qf2 {[%emt 0:00:45]} (36. Ke1 $14) 36... Rg4 $16 {[%emt 0:00:05]} 37. Qf3 {[%emt 0:01:09] Weighted Error Value: White=0.19 (very precise) /Black=0.18 (very precise)} (37. Rxd6 $16 Rxd6 38. Bxf4 Rxg2 39. Qxg2) 1/2-1/2

[Event "European Women-ch 2023"]
[Site "Petrovac"]
[Date "2023.03.19"]
[Round "2.2"]
[White "Guichard, Pauline"]
[Black "Maione, Melissa"]
[Result "1-0"]
[ECO "D91"]
[WhiteElo "2379"]
[BlackElo "2028"]
[Annotator "TA"]
[PlyCount "75"]
[EventDate "2023.03.15"]
[EventType "swiss"]
[EventCountry "MNE"]
[SourceTitle "playchess.com"]
[Source "ChessBase"]
[SourceQuality "1"]
[TimeControl "40/5400+30:1800+30"]

{[%evp 15,75,62,62,62,61,72,71,68,80,83,83,17,20,18,21,1,8,17,12,9,6,6,48,19,25,4,29,23,25,22,25,25,31,41,72,30,79,79,87,89,82,87,83,86,139,145,138,130,145,120,135,135,137,133,130,125,139,126,566,562,987,987]} 1. d4 {[%emt 0:00:03]} Nf6 {[%emt 0:00:12]} 2. c4 {[%emt 0:00:08]} g6 {[%emt 0:00:24]} 3. Nc3 {[%emt 0:00:26]} d5 {[%emt 0:00:21]} 4. Nf3 {[%emt 0:01:56]} Bg7 {[%emt 0:01:44]} 5. Bg5 {[%emt 0:00:37]} c6 {[%emt 0:04:25]} 6. e3 {[%emt 0:00:42]} O-O {[%emt 0:03:22]} 7. Qb3 {[%emt 0:04:23]} e6 {[%emt 0:13:28]} 8. Be2 {[%emt 0:04:37]} Nbd7 {[%emt 0:02:05]} 9. O-O {[%emt 0:00:21] D91: Grünfeld: 4 Nf3 Bg7 5 Bg5.} Qb6 {[%emt 0:08:12]} 10. Qc2 {[%emt 0:04:34]} Re8 {[%emt 0:02:52]} 11. Rfd1 {[%emt 0:10:04] White is better.} dxc4 {[%emt 0:09:36]} 12. Bxc4 {[%emt 0:09:49] [#]} e5 $146 {[%emt 0:03:22]} ({Predecessor:} 12... Qb4 13. Be2 Nd5 14. e4 Nxc3 15. bxc3 Qa5 16. Rab1 e5 17. d5 cxd5 18. Rxd5 Qc7 {1-0 Bietz,F (2042)-Warnk,T (2079) Hessen-chA Marburg 2006 (2.4)}) 13. Na4 {[%emt 0:06:37] White is much more active. The black rooks are badly placed.} ({White should try} 13. Bxf6 $16 Bxf6 14. Ne4 exd4 15. exd4) 13... Qa5 $11 {[%emt 0:03:59]} 14. Qb3 {[%emt 0:03:38]} Rf8 {[%emt 0:03:18] [#] Hoping for ...exd4.} 15. dxe5 {[%emt 0:08:12]} (15. Nc5 $5 Nxc5 16. dxc5 $11) 15... Nxe5 {[%emt 0:05:00]} 16. Nxe5 {[%emt 0:00:11]} Qxe5 {[%emt 0:00:32]} 17. Bf4 {[%emt 0:00:06]} Qf5 {[%emt 0:03:05] White must now prevent ...b5.} 18. Nc3 {[%emt 0:02:08]} Ng4 {[%emt 0:03:47]} 19. Rd2 {[%emt 0:05:32]} Ne5 {[%emt 0:01:35]} 20. Be2 {[%emt 0:00:16]} b6 {[%emt 0:02:31][%cal Bb7b6,Bb6b5][%mdl 32]} 21. Qa4 {[%emt 0:02:47]} b5 {[%emt 0:03:27]} 22. Qa5 {[%emt 0:01:24]} Be6 {[%emt 0:01:59]} 23. Rad1 {[%emt 0:02:07]} h5 {[%emt 0:07:45]} 24. h3 {[%emt 0:01:09]} Kh7 {[%emt 0:02:02]} 25. Bg3 {[%emt 0:03:48]} Nc4 {[%emt 0:02:50]} (25... Rfb8 $11 26. Qb4 Bc4) 26. Bxc4 $16 {[%emt 0:00:08]} Bxc4 {[%emt 0:00:05]} 27. b3 {[%emt 0:09:20]} Be6 {[%emt 0:01:11]} 28. Ne2 {[%emt 0:00:47]} Bd5 {[%emt 0:01:57]} 29. Nf4 {[%emt 0:05:10][%cal Rf4d5]} Be6 {[%emt 0:01:11]} (29... Be4 $142) 30. Nxe6 {[%emt 0:02:51]} Qxe6 {[%emt 0:01:17]} 31. Rd6 $36 {[%emt 0:00:05][%mdl 2048] Keeping Black busy.} Qe4 {[%emt 0:00:50]} 32. Qa6 {[%emt 0:00:44]} h4 {[%emt 0:02:26]} 33. Bf4 {[%emt 0:00:44]} (33. Qxc6 $2 {loses.} Qxc6 34. Rxc6 hxg3 35. fxg3 Rae8 $19) 33... Rfc8 {[%emt 0:01:02]} 34. Qb7 {[%emt 0:06:30] [#] Rd7 is the strong threat.} Kg8 {[%emt 0:04:25]} 35. Rc1 {[%emt 0:01:30]} Rab8 {[%emt 0:01:07]} 36. Qxa7 {[%emt 0:00:58][%cal Od6c6]} Bf8 $2 {[%emt 0:00:26][%mdl 8192]} (36... c5 $16) 37. Rd4 $18 {[%emt 0:01:02]} Qf5 {[%emt 0:00:10]} 38. Bxb8 {[%emt 0:00:14][%mdl 64] Discovered Attack.   Weighted Error Value: White=0.09 (flawless) /Black=0.25 (precise)} 1-0